{"text_format":"1","workbook":"xlsx","n_sheets":7,"sheets":["QUOTIENT Function Quick View","Only Interger Quotient","Returns Remainder","Customized Value","VBA Macro Code","QUOTIENT vs Division Operator","Negative value"],"not_rendered":{"charts":0,"images":0,"macros":1,"external_links":0,"defined_names":7,"comments":0,"pivot_tables":0},"unopened":[],"bounds":{"document_bytes":16777216,"sheet_cells":100000,"rows_first":2000,"rows_last":500,"rows_between":2000,"halvings":0,"cell_chars":16384,"cell_head_chars":4096},"cells_cut":0,"cells_raw":0,"read":"whole","date_system":"1900"}

{"sheet":"QUOTIENT Function Quick View","index":0,"n_rows":16,"n_cols":6,"rows_kept":16,"cut":false,"hidden":false,"merged":[[1,1,1,4],[2,1,2,4],[3,2,3,3]]}
[]
[null,"Excel QUOTIENT Function"]
[null,"Quick Overview"]
[]
[null,"Numerator","Denominator","Result","Used Formula"]
[null,10,3,{"$f":"QUOTIENT(B6,C6)","v":3},"=QUOTIENT(B6,C6)"]
[null,"23a",7,{"$f":"QUOTIENT(B7,C7)","v":{"$error":"#VALUE!"}},"=QUOTIENT(B7,C7)",">>Dividend is non-numeric"]
[null,23.45,2,11,"=QUOTIENT(B8,C8)"]
[null,200,null,{"$error":"#DIV/0!"},"=QUOTIENT(B9,C9)",">>The Divisor has an empty cell"]
[null,0.45454499999999998,2,0,"=QUOTIENT(B8,C8)"]
[null,27,3,9,"=QUOTIENT(B8,C8)"]
[null,57,0,{"$error":"#DIV/0!"},"=QUOTIENT(B9,C9)",">>Divided by Zero (0)"]
[null,-30,4,-7,"=QUOTIENT(B11,C11)",">>Division of negative number"]
[]
[null,"**Mathematical Function"]
[null,"**Return Quotients without Remainder"]

{"sheet":"Only Interger Quotient","index":1,"n_rows":13,"n_cols":5,"rows_kept":13,"cut":false,"hidden":false,"merged":[[3,2,3,3],[1,1,1,4],[2,1,2,4]]}
[]
[null,"Excel QUOTIENT Function"]
[null,"Returns Only Integer Quotient"]
[]
[null,"Numerator","Denominator","QUOTIENT Returns","Whole Result"]
[null,10,3,{"$f":"QUOTIENT(B6,C6)","v":3},{"$f":"B6/C6","v":3.3333333333333335}]
[null,"23a",7,{"$f":"QUOTIENT(B7,C7)","v":{"$error":"#VALUE!"}},{"$f":"B7/C7","v":{"$error":"#VALUE!"}}]
[null,23.45,2,11,11.725]
[null,200,null,{"$error":"#DIV/0!"},{"$error":"#DIV/0!"}]
[null,0.45454499999999998,2,0,0.22727249999999999]
[null,27,3,9,9]
[null,57,0,{"$error":"#DIV/0!"},{"$error":"#DIV/0!"}]
[null,-30,4,-7,-7.5]

{"sheet":"Returns Remainder","index":2,"n_rows":13,"n_cols":6,"rows_kept":13,"cut":false,"hidden":false,"merged":[[3,2,3,3],[1,1,1,5],[2,1,2,5]]}
[]
[null,"Excel QUOTIENT Function"]
[null,"QUOTIENT Returns Remainder"]
[]
[null,"Numerator","Denominator","QUOTIENT Returns","Remainder","Used Formula"]
[null,10,3,{"$f":"QUOTIENT(B6,C6)","v":3},{"$f":"B6/C6-QUOTIENT(B6,C6)","v":0.33333333333333348},"=B6/C6-QUOTIENT(B6,C6)"]
[null,"23a",7,{"$f":"QUOTIENT(B7,C7)","v":{"$error":"#VALUE!"}},{"$f":"B7/C7-QUOTIENT(B7,C7)","v":{"$error":"#VALUE!"}},"=B7/C7-QUOTIENT(B7,C7)"]
[null,23.45,2,11,0.72499999999999964,"=B8/C8-QUOTIENT(B8,C8)"]
[null,200,null,{"$error":"#DIV/0!"},{"$error":"#DIV/0!"},"=B9/C9-QUOTIENT(B9,C9)"]
[null,0.45454499999999998,2,0,0.22727249999999999,"=B10/C10-QUOTIENT(B10,C10)"]
[null,27,3,9,0,"=B11/C11-QUOTIENT(B11,C11)"]
[null,57,0,{"$error":"#DIV/0!"},{"$error":"#DIV/0!"},"=B12/C12-QUOTIENT(B12,C12)"]
[null,-30,4,-7,-0.5,"=B13/C13-QUOTIENT(B13,C13)"]

{"sheet":"Customized Value","index":3,"n_rows":13,"n_cols":5,"rows_kept":13,"cut":false,"hidden":false,"merged":[[1,1,1,4],[2,1,2,4],[3,2,3,3]]}
[]
[null,"Excel QUOTIENT Function"]
[null,"QUOTIENT Returns Customized Value"]
[]
[null,"Numerator","Denominator","QUOTIENT Returns","Customized Value"]
[null,10,3,{"$f":"QUOTIENT(B6,C6)","v":3},{"$f":"IFERROR(QUOTIENT(B6,C6),\"Input Error\")","v":3}]
[null,"23a",7,{"$f":"QUOTIENT(B7,C7)","v":{"$error":"#VALUE!"}},{"$f":"IFERROR(QUOTIENT(B7,C7),\"Input Error\")","v":"Input Error"}]
[null,23.45,2,11,11]
[null,200,null,{"$error":"#DIV/0!"},"Input Error"]
[null,0.45454499999999998,2,0,0]
[null,27,3,9,9]
[null,57,0,{"$error":"#DIV/0!"},"Input Error"]
[null,-30,4,-7,-7]

{"sheet":"VBA Macro Code","index":4,"n_rows":6,"n_cols":4,"rows_kept":6,"cut":false,"hidden":false,"merged":[[1,1,1,3],[2,1,2,3]]}
[]
[null,"Excel QUOTIENT Function"]
[null,"QUOTIENT Used in VBA Macro"]
[]
[null,"Numerator","Denominator","Quotient Return"]
[null,10,3,3]

{"sheet":"QUOTIENT vs Division Operator","index":5,"n_rows":13,"n_cols":5,"rows_kept":13,"cut":false,"hidden":false,"merged":[[1,1,1,4],[2,1,2,4],[3,2,3,3]]}
[]
[null,"Excel QUOTIENT Function"]
[null,"QUOTIENT vs Division Operator"]
[]
[null,"Numerator","Denominator","QUOTIENT Returns =QUOTIENT(numerator,denominator)","Operator Returns=numerator/denominator"]
[null,10,3,{"$f":"QUOTIENT(B6,C6)","v":3},{"$f":"B6/C6","v":3.3333333333333335}]
[null,23,7,{"$f":"QUOTIENT(B7,C7)","v":3},{"$f":"B7/C7","v":3.2857142857142856}]
[null,23.45,2,11,11.725]
[null,200,3,66,66.666666666666671]
[null,0.45454499999999998,2,0,0.22727249999999999]
[null,27,3,9,9]
[null,57,0,{"$error":"#DIV/0!"},{"$error":"#DIV/0!"}]
[null,-30,4,-7,-7.5]

{"sheet":"Negative value","index":6,"n_rows":8,"n_cols":4,"rows_kept":8,"cut":false,"hidden":false,"merged":[[1,1,1,3],[2,1,2,3]]}
[]
[null,"Excel QUOTIENT Function"]
[null,"Negative Value"]
[]
[null,"Numerator","Denominator","Quotient Returns"]
[null,-10,-3,{"$f":"QUOTIENT(B6,C6)","v":3}]
[null,-27,4,{"$f":"QUOTIENT(B7,C7)","v":-6}]
[null,39,-5,-7]